{"text_format":"3","workbook":"xlsx","n_sheets":4,"sheets":["Projekttracker","Gantt-Diagramm","Info","Dynam. Diagrammdaten (ausgebl.)"],"not_rendered":{"charts":1,"defined_names":8},"read":"whole","date_system":"1900"}

{"sheet":"Projekttracker","index":0,"n_rows":22,"n_cols":7,"rows_kept":22}
["Erstellen Sie auf diesem Arbeitsblatt einen Projekttracker.\nDer Titel dieses Arbeitsblatts befindet sich in Zelle B1. \nInformationen zur Verwendung dieses Arbeitsblatts, einschließlich Anweisungen für die Sprachausgabe, finden Sie auf dem Arbeitsblatt \"Info\".","Projekttracker"]
["Das Anfangsdatum kann manuell in Zelle D2 eingegeben werden, oder verwenden Sie die Beispielformel der Vorlage, um in der Meilensteintabelle unten den kleinsten Datumswert in der Meilensteinspalte zu finden.",null,"Anfangsdatum:",{"$f":"IFERROR(IF(MIN(Meilensteine[Anfangsdatum])=0,TODAY(),MIN(Meilensteine[Anfangsdatum])),TODAY())","v":"2018-07-17"}]
["Das Enddatum kann manuell in Zelle D3 eingegeben werden, oder verwenden Sie die Beispielformel der Vorlage, um in der Meilensteintabelle unten den größten Datumswert in der Meilensteinspalte zu finden.",null,"Enddatum:",{"$f":"IFERROR(IF(MAX(Meilensteine[Enddatum])=0,TODAY(),MAX(Meilensteine[Enddatum])),TODAY())","v":"2019-02-12"}]
["Informationen über die Spalten der Meilensteintabelle finden Sie in den Zellen B4 bis G4.","Geben Sie in der Spalte unten eine sequenzielle Zahlenreihe ein.","Geben Sie das Anfangsdatum für den Meilenstein oder die Aktivität in der Spalte unten ein.","Geben Sie das Enddatum für den Meilenstein oder die Aktivität in der Spalte unten ein.","Geben Sie eine Beschreibung des Meilensteins bzw. der Aktivität in der Spalte unten ein. Diese Beschreibung wird im Projektdiagramm angezeigt.","Automatisch berechnet Die Daten unten, in dieser Spalte, werden für die Darstellung der Meilensteine und Aktivitäten verwendet.","Automatisch berechnet Dauer jeder Aufgabe "]
["Die Tabellenüberschriften befinden sich in den Zellen B5 bis G5. \nEs gibt zwei ausgeblendete Spalten: Die Spalten \"Anfang an Tag\" und \"Aufgabendauer\" in den Zellen F5 und G5 sind automatisch berechnet und werden zum Erstellen des Gantt-Diagramms auf dem Arbeitsblatt \"Gantt-Diagramm\" verwendet. \nBeispieldaten befinden sich in den Zellen B6 bis E21. \nDie nächste Anweisung finden Sie in Zelle A22.","Position","Anfangsdatum","Enddatum","Meilenstein/Aktivität","Anfang an Tag","Aufgabendauer"]
[null,1,{"$f":"TODAY()-10","v":"2018-08-06"},{"$f":"Meilensteine[[#This Row],[Anfangsdatum]]+10","v":"2018-08-16"},"Start",{"$f":"IFERROR(IF(OR(LEN(Meilensteine[[#This Row],[Anfangsdatum]])=0,LEN(Meilensteine[[#This Row],[Enddatum]])=0),\"\",INT(C6)-INT($C$6)),\"\")","v":0},{"$f":"IFERROR(IF(Meilensteine[[#This Row],[Anfang an Tag]]=0,DATEDIF(Meilensteine[[#This Row],[Anfangsdatum]],Meilensteine[[#This Row],[Enddatum]],\"d\")+1,IF(LEN(Meilensteine[[#This Row],[Anfang an Tag]])=0,\"\",DATEDIF(Meilensteine[[#This Row],[Anfangsdatum]],Meilensteine[[#This Row],[Enddatum]],\"d\")+1)),0)","v":11}]
[null,2,{"$f":"TODAY()+5","v":"2018-08-21"},{"$f":"Meilensteine[[#This Row],[Anfangsdatum]]+15","v":"2018-09-05"},{"$f":"\"Aktivität\"&\" \"&ROW($A2)","v":"Aktivität 2"},{"$f":"IFERROR(IF(OR(LEN(Meilensteine[[#This Row],[Anfangsdatum]])=0,LEN(Meilensteine[[#This Row],[Enddatum]])=0),\"\",INT(C7)-INT($C$6)),\"\")","v":15},{"$f":"IFERROR(IF(Meilensteine[[#This Row],[Anfang an Tag]]=0,DATEDIF(Meilensteine[[#This Row],[Anfangsdatum]],Meilensteine[[#This Row],[Enddatum]],\"d\")+1,IF(LEN(Meilensteine[[#This Row],[Anfang an Tag]])=0,\"\",DATEDIF(Meilensteine[[#This Row],[Anfangsdatum]],Meilensteine[[#This Row],[Enddatum]],\"d\")+1)),0)","v":16}]
[null,3,{"$f":"TODAY()-30","v":"2018-07-17"},{"$f":"Meilensteine[[#This Row],[Anfangsdatum]]+152","v":"2018-12-16"},"Aktivität 3",{"$f":"IFERROR(IF(OR(LEN(Meilensteine[[#This Row],[Anfangsdatum]])=0,LEN(Meilensteine[[#This Row],[Enddatum]])=0),\"\",INT(C8)-INT($C$6)),\"\")","v":{"v":-20,"d":"-20 "}},{"$f":"IFERROR(IF(Meilensteine[[#This Row],[Anfang an Tag]]=0,DATEDIF(Meilensteine[[#This Row],[Anfangsdatum]],Meilensteine[[#This Row],[Enddatum]],\"d\")+1,IF(LEN(Meilensteine[[#This Row],[Anfang an Tag]])=0,\"\",DATEDIF(Meilensteine[[#This Row],[Anfangsdatum]],Meilensteine[[#This Row],[Enddatum]],\"d\")+1)),0)","v":153}]
[null,4,{"$f":"TODAY()+2","v":"2018-08-18"},{"$f":"Meilensteine[[#This Row],[Anfangsdatum]]+150","v":"2019-01-15"},"Aktivität 4",{"$f":"IFERROR(IF(OR(LEN(Meilensteine[[#This Row],[Anfangsdatum]])=0,LEN(Meilensteine[[#This Row],[Enddatum]])=0),\"\",INT(C9)-INT($C$6)),\"\")","v":12},{"$f":"IFERROR(IF(Meilensteine[[#This Row],[Anfang an Tag]]=0,DATEDIF(Meilensteine[[#This Row],[Anfangsdatum]],Meilensteine[[#This Row],[Enddatum]],\"d\")+1,IF(LEN(Meilensteine[[#This Row],[Anfang an Tag]])=0,\"\",DATEDIF(Meilensteine[[#This Row],[Anfangsdatum]],Meilensteine[[#This Row],[Enddatum]],\"d\")+1)),0)","v":151}]
[null,5,{"$f":"TODAY()+15","v":"2018-08-31"},{"$f":"Meilensteine[[#This Row],[Anfangsdatum]]+14","v":"2018-09-14"},"Aktivität 5",{"$f":"IFERROR(IF(OR(LEN(Meilensteine[[#This Row],[Anfangsdatum]])=0,LEN(Meilensteine[[#This Row],[Enddatum]])=0),\"\",INT(C10)-INT($C$6)),\"\")","v":25},{"$f":"IFERROR(IF(Meilensteine[[#This Row],[Anfang an Tag]]=0,DATEDIF(Meilensteine[[#This Row],[Anfangsdatum]],Meilensteine[[#This Row],[Enddatum]],\"d\")+1,IF(LEN(Meilensteine[[#This Row],[Anfang an Tag]])=0,\"\",DATEDIF(Meilensteine[[#This Row],[Anfangsdatum]],Meilensteine[[#This Row],[Enddatum]],\"d\")+1)),0)","v":15}]
[null,6,{"$f":"TODAY()+30","v":"2018-09-15"},{"$f":"Meilensteine[[#This Row],[Anfangsdatum]]+45","v":"2018-10-30"},"Aktivität 6",{"$f":"IFERROR(IF(OR(LEN(Meilensteine[[#This Row],[Anfangsdatum]])=0,LEN(Meilensteine[[#This Row],[Enddatum]])=0),\"\",INT(C11)-INT($C$6)),\"\")","v":40},{"$f":"IFERROR(IF(Meilensteine[[#This Row],[Anfang an Tag]]=0,DATEDIF(Meilensteine[[#This Row],[Anfangsdatum]],Meilensteine[[#This Row],[Enddatum]],\"d\")+1,IF(LEN(Meilensteine[[#This Row],[Anfang an Tag]])=0,\"\",DATEDIF(Meilensteine[[#This Row],[Anfangsdatum]],Meilensteine[[#This Row],[Enddatum]],\"d\")+1)),0)","v":46}]
[null,7,{"$f":"TODAY()+45","v":"2018-09-30"},{"$f":"Meilensteine[[#This Row],[Anfangsdatum]]+56","v":"2018-11-25"},"Aktivität 7",{"$f":"IFERROR(IF(OR(LEN(Meilensteine[[#This Row],[Anfangsdatum]])=0,LEN(Meilensteine[[#This Row],[Enddatum]])=0),\"\",INT(C12)-INT($C$6)),\"\")","v":55},{"$f":"IFERROR(IF(Meilensteine[[#This Row],[Anfang an Tag]]=0,DATEDIF(Meilensteine[[#This Row],[Anfangsdatum]],Meilensteine[[#This Row],[Enddatum]],\"d\")+1,IF(LEN(Meilensteine[[#This Row],[Anfang an Tag]])=0,\"\",DATEDIF(Meilensteine[[#This Row],[Anfangsdatum]],Meilensteine[[#This Row],[Enddatum]],\"d\")+1)),0)","v":57}]
[null,8,{"$f":"TODAY()+60","v":"2018-10-15"},{"$f":"Meilensteine[[#This Row],[Anfangsdatum]]+30","v":"2018-11-14"},"Aktivität 8",{"$f":"IFERROR(IF(OR(LEN(Meilensteine[[#This Row],[Anfangsdatum]])=0,LEN(Meilensteine[[#This Row],[Enddatum]])=0),\"\",INT(C13)-INT($C$6)),\"\")","v":70},{"$f":"IFERROR(IF(Meilensteine[[#This Row],[Anfang an Tag]]=0,DATEDIF(Meilensteine[[#This Row],[Anfangsdatum]],Meilensteine[[#This Row],[Enddatum]],\"d\")+1,IF(LEN(Meilensteine[[#This Row],[Anfang an Tag]])=0,\"\",DATEDIF(Meilensteine[[#This Row],[Anfangsdatum]],Meilensteine[[#This Row],[Enddatum]],\"d\")+1)),0)","v":31}]
[null,9,{"$f":"TODAY()+37","v":"2018-09-22"},{"$f":"Meilensteine[[#This Row],[Anfangsdatum]]+22","v":"2018-10-14"},"Aktivität 9",{"$f":"IFERROR(IF(OR(LEN(Meilensteine[[#This Row],[Anfangsdatum]])=0,LEN(Meilensteine[[#This Row],[Enddatum]])=0),\"\",INT(C14)-INT($C$6)),\"\")","v":47},{"$f":"IFERROR(IF(Meilensteine[[#This Row],[Anfang an Tag]]=0,DATEDIF(Meilensteine[[#This Row],[Anfangsdatum]],Meilensteine[[#This Row],[Enddatum]],\"d\")+1,IF(LEN(Meilensteine[[#This Row],[Anfang an Tag]])=0,\"\",DATEDIF(Meilensteine[[#This Row],[Anfangsdatum]],Meilensteine[[#This Row],[Enddatum]],\"d\")+1)),0)","v":23}]
[null,10,{"$f":"TODAY()-20","v":"2018-07-27"},{"$f":"Meilensteine[[#This Row],[Anfangsdatum]]+160","v":"2019-01-03"},"Aktivität 10",{"$f":"IFERROR(IF(OR(LEN(Meilensteine[[#This Row],[Anfangsdatum]])=0,LEN(Meilensteine[[#This Row],[Enddatum]])=0),\"\",INT(C15)-INT($C$6)),\"\")","v":{"v":-10,"d":"-10 "}},{"$f":"IFERROR(IF(Meilensteine[[#This Row],[Anfang an Tag]]=0,DATEDIF(Meilensteine[[#This Row],[Anfangsdatum]],Meilensteine[[#This Row],[Enddatum]],\"d\")+1,IF(LEN(Meilensteine[[#This Row],[Anfang an Tag]])=0,\"\",DATEDIF(Meilensteine[[#This Row],[Anfangsdatum]],Meilensteine[[#This Row],[Enddatum]],\"d\")+1)),0)","v":161}]
[null,11,{"$f":"TODAY()+20","v":"2018-09-05"},{"$f":"Meilensteine[[#This Row],[Anfangsdatum]]+65","v":"2018-11-09"},"Aktivität 11",{"$f":"IFERROR(IF(OR(LEN(Meilensteine[[#This Row],[Anfangsdatum]])=0,LEN(Meilensteine[[#This Row],[Enddatum]])=0),\"\",INT(C16)-INT($C$6)),\"\")","v":30},{"$f":"IFERROR(IF(Meilensteine[[#This Row],[Anfang an Tag]]=0,DATEDIF(Meilensteine[[#This Row],[Anfangsdatum]],Meilensteine[[#This Row],[Enddatum]],\"d\")+1,IF(LEN(Meilensteine[[#This Row],[Anfang an Tag]])=0,\"\",DATEDIF(Meilensteine[[#This Row],[Anfangsdatum]],Meilensteine[[#This Row],[Enddatum]],\"d\")+1)),0)","v":66}]
[null,12,{"$f":"TODAY()+70","v":"2018-10-25"},{"$f":"Meilensteine[[#This Row],[Anfangsdatum]]+67","v":"2018-12-31"},"Aktivität 12",{"$f":"IFERROR(IF(OR(LEN(Meilensteine[[#This Row],[Anfangsdatum]])=0,LEN(Meilensteine[[#This Row],[Enddatum]])=0),\"\",INT(C17)-INT($C$6)),\"\")","v":80},{"$f":"IFERROR(IF(Meilensteine[[#This Row],[Anfang an Tag]]=0,DATEDIF(Meilensteine[[#This Row],[Anfangsdatum]],Meilensteine[[#This Row],[Enddatum]],\"d\")+1,IF(LEN(Meilensteine[[#This Row],[Anfang an Tag]])=0,\"\",DATEDIF(Meilensteine[[#This Row],[Anfangsdatum]],Meilensteine[[#This Row],[Enddatum]],\"d\")+1)),0)","v":68}]
[null,13,{"$f":"TODAY()+90","v":"2018-11-14"},{"$f":"Meilensteine[[#This Row],[Anfangsdatum]]+14","v":"2018-11-28"},"Aktivität 13",{"$f":"IFERROR(IF(OR(LEN(Meilensteine[[#This Row],[Anfangsdatum]])=0,LEN(Meilensteine[[#This Row],[Enddatum]])=0),\"\",INT(C18)-INT($C$6)),\"\")","v":100},{"$f":"IFERROR(IF(Meilensteine[[#This Row],[Anfang an Tag]]=0,DATEDIF(Meilensteine[[#This Row],[Anfangsdatum]],Meilensteine[[#This Row],[Enddatum]],\"d\")+1,IF(LEN(Meilensteine[[#This Row],[Anfang an Tag]])=0,\"\",DATEDIF(Meilensteine[[#This Row],[Anfangsdatum]],Meilensteine[[#This Row],[Enddatum]],\"d\")+1)),0)","v":15}]
[null,14,{"$f":"TODAY()+100","v":"2018-11-24"},{"$f":"Meilensteine[[#This Row],[Anfangsdatum]]+3","v":"2018-11-27"},"Aktivität 14",{"$f":"IFERROR(IF(OR(LEN(Meilensteine[[#This Row],[Anfangsdatum]])=0,LEN(Meilensteine[[#This Row],[Enddatum]])=0),\"\",INT(C19)-INT($C$6)),\"\")","v":110},{"$f":"IFERROR(IF(Meilensteine[[#This Row],[Anfang an Tag]]=0,DATEDIF(Meilensteine[[#This Row],[Anfangsdatum]],Meilensteine[[#This Row],[Enddatum]],\"d\")+1,IF(LEN(Meilensteine[[#This Row],[Anfang an Tag]])=0,\"\",DATEDIF(Meilensteine[[#This Row],[Anfangsdatum]],Meilensteine[[#This Row],[Enddatum]],\"d\")+1)),0)","v":4}]
[null,15,{"$f":"TODAY()+50","v":"2018-10-05"},{"$f":"Meilensteine[[#This Row],[Anfangsdatum]]+130","v":"2019-02-12"},"Aktivität 15",{"$f":"IFERROR(IF(OR(LEN(Meilensteine[[#This Row],[Anfangsdatum]])=0,LEN(Meilensteine[[#This Row],[Enddatum]])=0),\"\",INT(C20)-INT($C$6)),\"\")","v":60},{"$f":"IFERROR(IF(Meilensteine[[#This Row],[Anfang an Tag]]=0,DATEDIF(Meilensteine[[#This Row],[Anfangsdatum]],Meilensteine[[#This Row],[Enddatum]],\"d\")+1,IF(LEN(Meilensteine[[#This Row],[Anfang an Tag]])=0,\"\",DATEDIF(Meilensteine[[#This Row],[Anfangsdatum]],Meilensteine[[#This Row],[Enddatum]],\"d\")+1)),0)","v":131}]
[{"$nulls":5},{"$f":"IFERROR(IF(OR(LEN(Meilensteine[[#This Row],[Anfangsdatum]])=0,LEN(Meilensteine[[#This Row],[Enddatum]])=0),\"\",INT(C21)-INT($C$6)),\"\")","v":""},{"$f":"IFERROR(IF(Meilensteine[[#This Row],[Anfang an Tag]]=0,DATEDIF(Meilensteine[[#This Row],[Anfangsdatum]],Meilensteine[[#This Row],[Enddatum]],\"d\")+1,IF(LEN(Meilensteine[[#This Row],[Anfang an Tag]])=0,\"\",DATEDIF(Meilensteine[[#This Row],[Anfangsdatum]],Meilensteine[[#This Row],[Enddatum]],\"d\")+1)),0)","v":""}]
["Um weitere Meilensteine/Aktivitäten hinzuzufügen, fügen Sie neue Zeilen über dieser ein.\nDies ist die letzte Anweisung auf diesem Arbeitsblatt.","Um weitere Meilensteine/Aktivitäten hinzuzufügen, fügen Sie neue Zeilen über dieser ein."]

{"sheet":"Gantt-Diagramm","index":1,"n_rows":1,"n_cols":1,"rows_kept":1}
["Auf diesem Arbeitsblatt befindet sich ein Gantt-Diagramm mit einer Scrollleiste. \nDie Scrollleiste beginnt in Zelle B29.\nDies ist die letzte Anweisung auf diesem Arbeitsblatt."]

{"sheet":"Info","index":2,"n_rows":6,"n_cols":1,"rows_kept":6}
["Informationen zu dieser Arbeitsmappe"]
["\nGeben Sie Ihre Daten auf dem Arbeitsblatt \"Projekttracker\" ein, und scrollen Sie dann auf dem Arbeitsblatt \"Gantt-Diagramm\" durch eine visuelle Darstellung Ihrer Zeitachse. \n"]
["Die Spalte \"Position\" auf dem Arbeitsblatt \"Projekttracker\" ermöglicht Ihnen die Darstellung von Meilensteinen und Aktivitäten in getrennten Zeilen. Beispielsweise können Sie über zwei Meilensteine/Aktivitäten verfügen, die am gleichen Tag beginnen und parallel verlaufen. Bei gleichem Wert für \"Position\" würden sie sich im Diagramm überschneiden. Geben Sie zwei eindeutige Werte ein, um sie in separaten Zeilen darzustellen. Probieren Sie es aus.\n\nWenn sich das Diagramm seinem Ende nähert, fallen Ihnen möglicherweise Markierungen ohne Text und ohne festgelegte Dauer auf der Zeitachse auf. Wenn der letzte Meilenstein aus dem Sichtfeld scrollt, zeigen diese Markierungen das Ende der darzustellenden Meilensteine im Projekttracker an. Scrollen Sie einfach zurück oder an den Anfang, um die im Diagramm darstellbaren Meilensteine anzuzeigen.\n"]
["Leitfaden für die Sprachausgabe"]
["Diese Arbeitsmappe enthält 4 Arbeitsblätter. \n\nProjekttracker\nGantt-Diagramm\nInfo\nDynamische Diagrammdaten (ausgeblendet)\n\nDie Anweisungen für jedes Arbeitsblatt befinden sich in Spalte A ab Zelle A1 der einzelnen Arbeitsblätter. Sie sind in verborgenem Text geschrieben. Jeder Schritt führt Sie durch die Informationen in der betreffenden Zeile. Jeder nachfolgende Schritt fährt in den Zellen A2, A3 usw. fort, sofern nicht ausdrücklich anders angegeben. Beispielsweise kann der Anweisungstext etwa für den nächsten Schritt \"Mit Zelle 6 fortfahren\" besagen. \n\nVerborgener Text wird nicht gedruckt.\n\nUm diese Anweisungen von einem der Arbeitsblätter zu entfernen, löschen Sie einfach Spalte A.\n"]
["Dies ist die letzte Anweisung auf diesem Arbeitsblatt."]

{"sheet":"Dynam. Diagrammdaten (ausgebl.)","index":3,"n_rows":10,"n_cols":6,"rows_kept":10,"hidden":true}
["Der Titel dieses Arbeitsblatts befindet sich in Zelle B1.","Dynamische Diagrammdaten"]
["Die Überschrift für die horizontale Scrollschrittweite befindet sich in Zelle B2.\nUm die Daten schrittweise manuell zu erhöhen, geben Sie in Zelle B3 einen neuen Wert ein.\nDie Scrollseite wird automatisch aktualisiert, wenn die Scrollleiste auf dem Arbeitsblatt \"Gantt-Diagramm\" seitenweise vor- oder zurückbewegt wird.","horizontale Scrollschrittweite"]
["Der Scrollwert für das automatisch aktualisierte Gantt-Diagramm befindet sich in Zelle B3.",0]
["Der Tabellentitel befindet sich in Zelle B4.","Dynamische Datentabelle"]
["Die Tabellenüberschriften befinden sich in den Zellen B5 bis E5. \nEin Hinweis befindet sich in Zelle F5.\nDiese Tabelle stellt bis zu 5 Meilensteine zugleich dar. \nÄndern oder löschen Sie dieses Arbeitsblatt und seinen Inhalt nicht.","Meilenstein","Datum","Anfang an Tag","Dauer","< Darstellung von bis zu 5 Meilensteinen zugleich"]
[null,{"$f":"IFERROR(IF(LEN(OFFSET(Projekttracker!$E6,$B$3,0,1,1))=0,\"\",INDEX(Meilensteine[],Projekttracker!$B6+$B$3,4)),\"\")","v":"Start"},{"$f":"IFERROR(IF(LEN(OFFSET(Projekttracker!$C6,$B$3,0,1,1))=0,End_Date,INDEX(Meilensteine[],Projekttracker!$B6+$B$3,2)),\"\")","v":"2018-08-06"},{"$f":"IFERROR(IF(LEN(OFFSET(Projekttracker!$F6,$B$3,0,1,1))=0,\"\",INDEX(Meilensteine[],Projekttracker!$B6+$B$3,5)),\"\")","v":0},{"$f":"IFERROR(IF(LEN(OFFSET(Projekttracker!$G6,$B$3,0,1,1))=0,\"\",INDEX(Meilensteine[],Projekttracker!$B6+$B$3,6)),\"\")","v":11}]
[null,{"$f":"IFERROR(IF(LEN(OFFSET(Projekttracker!$E7,$B$3,0,1,1))=0,\"\",INDEX(Meilensteine[],Projekttracker!$B7+$B$3,4)),\"\")","v":"Aktivität 2"},{"$f":"IFERROR(IF(LEN(OFFSET(Projekttracker!$C7,$B$3,0,1,1))=0,End_Date,INDEX(Meilensteine[],Projekttracker!$B7+$B$3,2)),\"\")","v":"2018-08-21"},{"$f":"IFERROR(IF(LEN(OFFSET(Projekttracker!$F7,$B$3,0,1,1))=0,\"\",INDEX(Meilensteine[],Projekttracker!$B7+$B$3,5)),\"\")","v":15},{"$f":"IFERROR(IF(LEN(OFFSET(Projekttracker!$G7,$B$3,0,1,1))=0,\"\",INDEX(Meilensteine[],Projekttracker!$B7+$B$3,6)),\"\")","v":16}]
[null,{"$f":"IFERROR(IF(LEN(OFFSET(Projekttracker!$E8,$B$3,0,1,1))=0,\"\",INDEX(Meilensteine[],Projekttracker!$B8+$B$3,4)),\"\")","v":"Aktivität 3"},{"$f":"IFERROR(IF(LEN(OFFSET(Projekttracker!$C8,$B$3,0,1,1))=0,End_Date,INDEX(Meilensteine[],Projekttracker!$B8+$B$3,2)),\"\")","v":"2018-07-17"},{"$f":"IFERROR(IF(LEN(OFFSET(Projekttracker!$F8,$B$3,0,1,1))=0,\"\",INDEX(Meilensteine[],Projekttracker!$B8+$B$3,5)),\"\")","v":-20},{"$f":"IFERROR(IF(LEN(OFFSET(Projekttracker!$G8,$B$3,0,1,1))=0,\"\",INDEX(Meilensteine[],Projekttracker!$B8+$B$3,6)),\"\")","v":153}]
[null,{"$f":"IFERROR(IF(LEN(OFFSET(Projekttracker!$E9,$B$3,0,1,1))=0,\"\",INDEX(Meilensteine[],Projekttracker!$B9+$B$3,4)),\"\")","v":"Aktivität 4"},{"$f":"IFERROR(IF(LEN(OFFSET(Projekttracker!$C9,$B$3,0,1,1))=0,End_Date,INDEX(Meilensteine[],Projekttracker!$B9+$B$3,2)),\"\")","v":"2018-08-18"},{"$f":"IFERROR(IF(LEN(OFFSET(Projekttracker!$F9,$B$3,0,1,1))=0,\"\",INDEX(Meilensteine[],Projekttracker!$B9+$B$3,5)),\"\")","v":12},{"$f":"IFERROR(IF(LEN(OFFSET(Projekttracker!$G9,$B$3,0,1,1))=0,\"\",INDEX(Meilensteine[],Projekttracker!$B9+$B$3,6)),\"\")","v":151}]
[null,{"$f":"IFERROR(IF(LEN(OFFSET(Projekttracker!$E10,$B$3,0,1,1))=0,\"\",INDEX(Meilensteine[],Projekttracker!$B10+$B$3,4)),\"\")","v":"Aktivität 5"},{"$f":"IFERROR(IF(LEN(OFFSET(Projekttracker!$C10,$B$3,0,1,1))=0,End_Date,INDEX(Meilensteine[],Projekttracker!$B10+$B$3,2)),\"\")","v":"2018-08-31"},{"$f":"IFERROR(IF(LEN(OFFSET(Projekttracker!$F10,$B$3,0,1,1))=0,\"\",INDEX(Meilensteine[],Projekttracker!$B10+$B$3,5)),\"\")","v":25},{"$f":"IFERROR(IF(LEN(OFFSET(Projekttracker!$G10,$B$3,0,1,1))=0,\"\",INDEX(Meilensteine[],Projekttracker!$B10+$B$3,6)),\"\")","v":15}]